[Event "MOKATE POL-chW 2019"]
[Site "Warsaw"]
[Date "2019.05.12"]
[Round "2.5"]
[White "Socko, Monika"]
[Black "Kulon, Klaudia"]
[Result "1-0"]
[ECO "A88"]
[WhiteElo "2445"]
[BlackElo "2357"]
[Annotator "ChessBase"]
[PlyCount "109"]
[EventDate "2019.05.11"]
[EventType "tourn"]
[EventCountry "POL"]
[SourceTitle "playchess.com"]
[Source "ChessBase"]
[SourceQuality "1"]
[TimeControl "40/5400+30:1800+30"]

1. d4 {[%emt 0:00:00]} f5 {[%emt 0:00:00]} 2. Nf3 {[%emt 0:00:00]} Nf6 {[%emt 0:00:00]} 3. c4 {[%emt 0:00:00]} g6 {[%emt 0:00:00]} 4. g3 {[%emt 0:00:31]} Bg7 {[%emt 0:00:00]} 5. Bg2 {[%emt 0:00:06]} O-O {[%emt 0:00:09]} 6. Nc3 {[%emt 0:00:49]} d6 {[%emt 0:00:04]} 7. O-O {[%emt 0:00:34]} c6 {[%emt 0:00:04]} 8. Rb1 {[%emt 0:02:41]} a5 {[%emt 0:04:43]} 9. d5 {[%emt 0:03:41]} e5 {[%emt 0:02:11]} 10. dxe6 {[%emt 0:03:54]} Bxe6 {[%emt 0:00:04]} 11. b3 {[%emt 0:02:57]} Na6 {[%emt 0:01:57]} 12. Ng5 {[%emt 0:09:12]} Qe7 {[%emt 0:00:41]} 13. Nxe6 {[%emt 0:08:56]} Qxe6 {[%emt 0:00:05]} 14. Be3 {[%emt 0:00:53]} Nc5 {[%emt 0:16:49]} 15. Qc2 {[%emt 0:02:49]} Ng4 {[%emt 0:05:29]} 16. Bxc5 {[%emt 0:06:04]} dxc5 {[%emt 0:00:06]} 17. Na4 {[%emt 0:00:18]} Qe7 {[%emt 0:00:52]} 18. Rbd1 {[%emt 0:01:18]} Rad8 {[%emt 0:02:09]} 19. e3 {[%emt 0:03:16]} h5 {[%emt 0:13:32]} 20. Rxd8 {[%emt 0:08:22]} Rxd8 {[%emt 0:00:05]} 21. Rd1 {[%emt 0:00:26]} Rxd1+ {[%emt 0:02:52]} 22. Qxd1 {[%emt 0:00:02]} h4 {[%emt 0:00:13]} 23. Qd3 {[%emt 0:06:27]} hxg3 {[%emt 0:03:30]} 24. hxg3 {[%emt 0:00:04]} Bf6 {[%emt 0:00:58]} 25. Nb6 {[%emt 0:04:43]} Ne5 {[%emt 0:03:16]} 26. Qd2 {[%emt 0:02:04]} Qd8 {[%emt 0:00:14]} 27. Qxd8+ {[%emt 0:02:13]} Bxd8 {[%emt 0:00:01]} 28. Na4 {[%emt 0:00:06]} Be7 {[%emt 0:01:02]} 29. e4 {[%emt 0:02:22]} b5 {[%emt 0:08:05]} 30. Nb2 {[%emt 0:07:01]} a4 {[%emt 0:07:04]} 31. bxa4 {[%emt 0:09:30]} bxa4 {[%emt 0:12:31]} 32. Nxa4 {[%emt 0:00:59]} Nxc4 {[%emt 0:00:18]} 33. exf5 {[%emt 0:00:10]} gxf5 {[%emt 0:00:14]} 34. Bxc6 {[%emt 0:00:19]} Kg7 {[%emt 0:00:20]} 35. Kf1 {[%emt 0:01:21]} Na3 {[%emt 0:00:38]} 36. Ke2 {[%emt 0:01:34]} Kf6 {[%emt 0:05:31]} 37. f4 {[%emt 0:00:45]} c4 {[%emt 0:04:35]} 38. Nb6 {[%emt 0:01:52]} Bd8 {[%emt 0:03:17]} 39. Nd5+ {[%emt 0:01:50]} Ke6 {[%emt 0:00:06]} 40. Ne3 {[%emt 0:00:00]} c3 {[%emt 0:00:00]} 41. Bd5+ {[%emt 0:03:13]} Kf6 {[%emt 0:03:13]} 42. Bb3 {[%emt 0:00:11]} Kg6 {[%emt 0:02:19]} 43. Be6 {[%emt 0:02:03]} Ba5 {[%emt 0:04:27]} 44. Bxf5+ {[%emt 0:00:27]} Kf6 {[%emt 0:00:02]} 45. Bd3 {[%emt 0:00:51]} Kg7 {[%emt 0:00:52]} 46. g4 {[%emt 0:00:50]} Bc7 {[%emt 0:00:59]} 47. Kf3 {[%emt 0:00:51]} Bb8 {[%emt 0:00:47]} 48. g5 {[%emt 0:00:48]} Bc7 {[%emt 0:00:24]} 49. f5 {[%emt 0:01:34]} Bb6 {[%emt 0:01:08]} 50. f6+ {[%emt 0:03:18]} Kf8 {[%emt 0:00:05]} 51. Ke4 {[%emt 0:04:15]} Bd8 {[%emt 0:00:23]} 52. Kf5 {[%emt 0:01:09]} Bb6 {[%emt 0:00:06]} 53. Nc2 {[%emt 0:00:28]} Nb1 {[%emt 0:00:13]} 54. g6 {[%emt 0:00:20]} Nd2 {[%emt 0:00:05]} 55. Be4 {[%emt 0:01:00]} 1-0

[Event "MOKATE POL-chW 2019"]
[Site "Warsaw"]
[Date "2019.05.16"]
[Round "6.5"]
[White "Warakomska, Anna"]
[Black "Sliwicka, Alicja"]
[Result "1/2-1/2"]
[ECO "C58"]
[WhiteElo "2218"]
[BlackElo "2271"]
[Annotator "ChessBase"]
[PlyCount "117"]
[EventDate "2019.05.11"]
[EventType "tourn"]
[EventCountry "POL"]
[SourceTitle "playchess.com"]
[Source "ChessBase"]
[SourceQuality "1"]
[TimeControl "40/5400+30:1800+30"]

1. e4 {[%emt 0:00:00]} e5 {[%emt 0:00:00]} 2. Nf3 {[%emt 0:00:00]} Nc6 {[%emt 0:00:00]} 3. Bc4 {[%emt 0:00:00]} Nf6 {[%emt 0:00:00]} 4. Ng5 {[%emt 0:00:10]} d5 {[%emt 0:00:00]} 5. exd5 {[%emt 0:00:04]} Na5 {[%emt 0:00:14]} 6. Bb5+ {[%emt 0:00:05]} c6 {[%emt 0:00:07]} 7. dxc6 {[%emt 0:00:03]} bxc6 {[%emt 0:00:06]} 8. Bd3 {[%emt 0:00:08]} Nd5 {[%emt 0:00:34]} 9. Nf3 {[%emt 0:01:38]} Bd6 {[%emt 0:04:25]} 10. O-O {[%emt 0:03:10]} Bg4 {[%emt 0:09:53]} 11. h3 {[%emt 0:08:20]} Bh5 {[%emt 0:02:12]} 12. Re1 {[%emt 0:01:44]} O-O {[%emt 0:02:08]} 13. g4 {[%emt 0:04:33]} f5 {[%emt 0:16:29]} 14. gxh5 {[%emt 0:08:38]} e4 {[%emt 0:00:08]} 15. Bf1 {[%emt 0:00:24]} exf3 {[%emt 0:00:59]} 16. Qxf3 {[%emt 0:00:25]} Qg5+ {[%emt 0:07:20]} 17. Bg2 {[%emt 0:04:01]} Rae8 {[%emt 0:00:45]} 18. Rd1 {[%emt 0:01:33]} Qf6 {[%emt 0:11:23]} 19. d3 {[%emt 0:09:35]} Nb7 {[%emt 0:05:39]} 20. c4 {[%emt 0:12:11]} Nb4 {[%emt 0:00:51]} 21. Na3 {[%emt 0:00:19]} Nc5 {[%emt 0:01:59]} 22. Bd2 {[%emt 0:13:10]} Nbxd3 {[%emt 0:01:48]} 23. Bc3 {[%emt 0:01:21]} Ne5 {[%emt 0:01:41]} 24. Bxe5 {[%emt 0:03:14]} Bxe5 {[%emt 0:01:37]} 25. Rab1 {[%emt 0:12:45]} Ne4 {[%emt 0:05:58]} 26. c5 {[%emt 0:03:55]} Bd4 {[%emt 0:01:52]} 27. Rf1 {[%emt 0:00:01]} Bxc5 {[%emt 0:02:05]} 28. Nc4 {[%emt 0:00:24]} Re6 {[%emt 0:03:16]} 29. Rbc1 {[%emt 0:01:31]} Kh8 {[%emt 0:06:06]} 30. Rc2 {[%emt 0:03:47]} Bd4 {[%emt 0:03:17]} 31. Qb3 {[%emt 0:02:02]} Nc5 {[%emt 0:05:07]} 32. Qf3 {[%emt 0:00:48]} f4 {[%emt 0:00:29]} 33. Nd2 {[%emt 0:00:40]} Nd7 {[%emt 0:01:33]} 34. Qa3 {[%emt 0:01:57]} Ne5 {[%emt 0:01:55]} 35. Nf3 {[%emt 0:00:56]} Nxf3+ {[%emt 0:00:20]} 36. Qxf3 {[%emt 0:01:01]} c5 {[%emt 0:00:44]} 37. Rd1 {[%emt 0:00:30]} a5 {[%emt 0:01:39]} 38. b3 {[%emt 0:01:41]} Re5 {[%emt 0:00:38]} 39. Rdd2 {[%emt 0:01:10]} Rg5 {[%emt 0:01:20]} 40. Kh2 {[%emt 0:00:00]} Qf7 {[%emt 0:00:00]} 41. Re2 {[%emt 0:02:54]} Rxh5 {[%emt 0:03:19]} 42. Re4 {[%emt 0:01:14]} Rf5 {[%emt 0:04:21]} 43. Rce2 {[%emt 0:01:28]} Qg6 {[%emt 0:02:01]} 44. Re6 {[%emt 0:05:01]} R5f6 {[%emt 0:00:07]} 45. Re7 {[%emt 0:04:27]} Qf5 {[%emt 0:07:14]} 46. R2e4 {[%emt 0:02:00]} h6 {[%emt 0:04:02]} 47. Bf1 {[%emt 0:01:11]} Qg5 {[%emt 0:01:21]} 48. Bd3 {[%emt 0:00:30]} Qd5 {[%emt 0:04:40]} 49. Rxg7 {[%emt 0:06:42]} Kxg7 {[%emt 0:03:19]} 50. Re7+ {[%emt 0:00:05]} R8f7 {[%emt 0:00:41]} 51. Qxd5 {[%emt 0:00:26]} Rxe7 {[%emt 0:00:04]} 52. Bc4 {[%emt 0:00:37]} Rf8 {[%emt 0:00:50]} 53. Qg2+ {[%emt 0:02:22]} Kh7 {[%emt 0:01:25]} 54. Qc6 {[%emt 0:01:20]} Kg7 {[%emt 0:01:12]} 55. Bd3 {[%emt 0:01:30]} Rf6 {[%emt 0:00:07]} 56. Qg2+ {[%emt 0:00:05]} Kh8 {[%emt 0:00:43]} 57. Qa8+ {[%emt 0:03:47]} Kg7 {[%emt 0:00:04]} 58. Qg2+ {[%emt 0:00:29]} Kh8 {[%emt 0:00:04]} 59. Qa8+ {[%emt 0:00:42]} 1/2-1/2

[Event "MOKATE POL-chW 2019"]
[Site "Warsaw"]
[Date "2019.05.17"]
[Round "7.3"]
[White "Majdan, Joanna"]
[Black "Kulon, Klaudia"]
[Result "1-0"]
[ECO "B01"]
[WhiteElo "2371"]
[BlackElo "2357"]
[Annotator "NA RC"]
[PlyCount "77"]
[EventDate "2019.05.11"]
[EventType "tourn"]
[EventCountry "POL"]
[SourceTitle "playchess.com"]
[Source "ChessBase"]
[SourceQuality "1"]
[TimeControl "40/5400+30:1800+30"]

1. e4 {[%emt 0:00:00]} d5 {[%emt 0:00:00]} 2. exd5 {[%emt 0:00:00]} Nf6 {[%emt 0:00:00]} 3. Bb5+ {[%emt 0:01:04]} Bd7 {[%emt 0:00:00]} 4. Be2 {[%emt 0:00:05]} Nxd5 {[%emt 0:01:34]} 5. d4 {[%emt 0:00:06]} Bf5 {[%emt 0:02:19]} 6. a3 {[%emt 0:00:54]} g6 {[%emt 0:05:58] B01: Scandinavian Defence} (6... e6 7. c4 Nb6 8. Nc3 Be7 9. Nf3 O-O 10. Be3 Nc6 11. h3 h6 12. g4 Bh7 13. h4 Re8 14. g5 {½-½ (22) Nestorovic,N (2455)-Pakleza,Z (2508) Germany 2018}) 7. c4 {[%emt 0:06:50]} Nb6 {[%emt 0:00:27]} 8. Nc3 {[%emt 0:00:06]} Bg7 {[%emt 0:01:33]} 9. Be3 {[%emt 0:00:06]} O-O $146 {[%emt 0:14:46]} ({Predecessor:} 9... Nc6 10. Nf3 O-O 11. d5 Ne5 12. Nxe5 Bxe5 13. O-O c6 14. Bd4 Bxd4 15. Qxd4 cxd5 16. cxd5 {½-½ (32) Suc,T (1900)-Marolt,D (2006) Kranj 2008}) 10. h3 {[%emt 0:09:36]} e5 {[%emt 0:03:22]} 11. d5 {[%emt 0:01:19]} c6 {[%emt 0:03:14]} 12. Qb3 {[%emt 0:07:08]} cxd5 {[%emt 0:02:13]} 13. cxd5 {[%emt 0:00:06]} Na6 {[%emt 0:03:53]} 14. Nf3 {[%emt 0:12:15]} Rc8 {[%emt 0:03:12]} 15. Rd1 {[%emt 0:05:38]} e4 {[%emt 0:04:40]} 16. Nd4 {[%emt 0:03:00]} Nc5 {[%emt 0:01:20]} 17. Qa2 {[%emt 0:01:58]} Bd7 {[%emt 0:02:44]} 18. O-O {[%emt 0:01:56]} Re8 {[%emt 0:09:52]} 19. Ndb5 {[%emt 0:03:48]} Bxb5 {[%emt 0:00:36]} 20. Bxb5 {[%emt 0:00:36]} Nbd7 {[%emt 0:01:55]} 21. b4 {[%emt 0:08:00]} Na6 {[%emt 0:09:21]} 22. Ne2 {[%emt 0:00:42]} Nc7 {[%emt 0:01:07]} 23. Ba4 {[%emt 0:02:25]} b5 {[%emt 0:03:10]} 24. Bb3 {[%emt 0:00:04]} a6 {[%emt 0:00:29]} 25. d6 {[%emt 0:03:13]} Ne6 {[%emt 0:00:30]} 26. Nf4 {[%emt 0:00:04]} Nxf4 {[%emt 0:08:31]} 27. Bxf7+ {[%emt 0:00:09] Double Attack} ({Not} 27. Bxf4 Qf6 $16) 27... Kh8 {[%emt 0:00:04]} 28. Bxe8 {[%emt 0:03:13]} ({Weaker is} 28. Bxf4 Rf8 $18) 28... Nxh3+ {[%emt 0:00:04]} 29. gxh3 {[%emt 0:00:03]} Qxe8 {[%emt 0:00:04]} 30. Qd5 {[%emt 0:00:25]} Rc3 {[%emt 0:03:38]} 31. Rd4 {[%emt 0:02:36]} Qd8 {[%emt 0:06:48]} 32. Qxe4 {[%emt 0:00:44]} Be5 {[%emt 0:03:06]} 33. Rd5 $18 {[%emt 0:03:12]} Rc4 {[%emt 0:00:57]} 34. Bd4 {[%emt 0:00:41]} Qg5+ {[%emt 0:00:47]} 35. Kh1 {[%emt 0:00:05]} Rxd4 {[%emt 0:01:20]} 36. Rxd4 {[%emt 0:00:04]} Nf6 {[%emt 0:01:05]} 37. Qe3 {[%emt 0:02:52]} Qf5 {[%emt 0:01:16]} 38. d7 {[%emt 0:00:05]} Nxd7 {[%emt 0:00:16]} 39. Rxd7 {[%emt 0:00:11]} 1-0

[Event "MOKATE POL-chW 2019"]
[Site "Warsaw"]
[Date "2019.05.17"]
[Round "7.4"]
[White "Zawadzka, Jolanta"]
[Black "Socko, Monika"]
[Result "1-0"]
[ECO "C11"]
[WhiteElo "2427"]
[BlackElo "2445"]
[Annotator "RC"]
[PlyCount "69"]
[EventDate "2019.05.11"]
[EventType "tourn"]
[EventCountry "POL"]
[SourceTitle "playchess.com"]
[Source "ChessBase"]
[SourceQuality "1"]
[TimeControl "40/5400+30:1800+30"]

1. e4 {[%emt 0:00:00]} e6 {[%emt 0:00:00]} 2. d4 {[%emt 0:00:00]} d5 {[%emt 0:00:00]} 3. Nc3 {[%emt 0:00:00]} Nf6 {[%emt 0:00:00]} 4. e5 {[%emt 0:00:00]} Nfd7 {[%emt 0:00:00]} 5. Nce2 {[%emt 0:00:00]} c5 {[%emt 0:01:16]} 6. c3 {[%emt 0:00:06]} Nc6 {[%emt 0:00:03]} 7. Nf3 {[%emt 0:00:05]} a5 {[%emt 0:03:30]} 8. a3 {[%emt 0:00:16]} b6 {[%emt 0:10:42]} 9. Nf4 {[%emt 0:03:40]} Ba6 {[%emt 0:03:00]} 10. h4 {[%emt 0:04:32]} Bxf1 {[%emt 0:01:53]} 11. Kxf1 {[%emt 0:00:08]} h6 {[%emt 0:09:03]} 12. Qc2 {[%emt 0:10:32]} Qc7 {[%emt 0:06:50]} 13. Rh3 {[%emt 0:04:46]} c4 {[%emt 0:09:43]} 14. a4 {[%emt 0:21:27]} Qb7 {[%emt 0:22:34]} 15. b3 {[%emt 0:11:17]} b5 {[%emt 0:00:12]} 16. bxc4 {[%emt 0:00:29]} bxc4 {[%emt 0:00:12]} 17. Rb1 {[%emt 0:00:50]} Qc7 {[%emt 0:00:16]} 18. Nxe6 {[%emt 0:08:20]} fxe6 {[%emt 0:00:49]} 19. Qg6+ {[%emt 0:00:05]} Kd8 {[%emt 0:00:35]} 20. Qxe6 {[%emt 0:00:17]} Ne7 {[%emt 0:05:09]} 21. Ba3 {[%emt 0:01:02]} Ke8 {[%emt 0:08:29]} 22. Bxe7 {[%emt 0:03:00]} Bxe7 {[%emt 0:00:03]} 23. Qxd5 {[%emt 0:02:07]} Rc8 {[%emt 0:00:31]} 24. Qe4 {[%emt 0:04:52]} Qc6 {[%emt 0:06:00]} 25. d5 {[%emt 0:00:53]} Nc5 {[%emt 0:00:53]} 26. Qf5 {[%emt 0:08:21]} g6 {[%emt 0:02:26]} 27. Qg4 {[%emt 0:00:06]} h5 {[%emt 0:00:03]} 28. Qd4 {[%emt 0:00:34]} Qxa4 {[%emt 0:00:55]} 29. d6 {[%emt 0:01:01]} Qc2 {[%emt 0:01:18]} 30. Rd1 {[%emt 0:02:18]} Rb8 {[%emt 0:05:55]} 31. Ne1 {[%emt 0:01:47]} Qa4 {[%emt 0:01:07]} 32. dxe7 {[%emt 0:03:12]} Ne6 {[%emt 0:00:40]} 33. Qd6 {[%emt 0:00:25]} Kf7 {[%emt 0:00:03]} 34. Rf3+ {[%emt 0:00:46]} Kg7 {[%emt 0:00:01]} 35. Rf6 {[%emt 0:02:22]} 1-0

[Event "MOKATE POL-chW 2019"]
[Site "Warsaw"]
[Date "2019.05.18"]
[Round "8.4"]
[White "Warakomska, Anna"]
[Black "Majdan, Joanna"]
[Result "1-0"]
[ECO "B31"]
[WhiteElo "2218"]
[BlackElo "2371"]
[Annotator "NA"]
[PlyCount "53"]
[EventDate "2019.05.11"]
[EventType "tourn"]
[EventCountry "POL"]
[SourceTitle "playchess.com"]
[Source "ChessBase"]
[SourceQuality "1"]
[TimeControl "40/5400+30:1800+30"]

1. e4 {[%emt 0:00:00]} c5 {[%emt 0:00:00]} 2. Nf3 {[%emt 0:00:00]} Nc6 {[%emt 0:00:00]} 3. Bb5 {[%emt 0:00:00]} g6 {[%emt 0:00:00]} 4. Bxc6 {[%emt 0:00:00]} bxc6 {[%emt 0:00:00]} 5. d4 {[%emt 0:00:36]} Bg7 {[%emt 0:01:08]} 6. dxc5 {[%emt 0:00:27]} Qa5+ {[%emt 0:00:21]} 7. Nbd2 {[%emt 0:00:06]} Ba6 {[%emt 0:11:02]} 8. Rb1 {[%emt 0:00:39]} Qxc5 {[%emt 0:04:08]} 9. c4 {[%emt 0:01:35]} Qa5 {[%emt 0:04:43]} 10. b4 {[%emt 0:08:40]} Qc7 {[%emt 0:02:04]} 11. O-O {[%emt 0:01:04]} Nf6 {[%emt 0:01:38]} 12. e5 {[%emt 0:16:29]} Ng4 {[%emt 0:01:01]} 13. Re1 {[%emt 0:00:28]} Nxe5 {[%emt 0:05:49]} 14. Nxe5 {[%emt 0:01:36]} Bxe5 {[%emt 0:00:03]} 15. Rxe5 {[%emt 0:00:27]} Qxe5 {[%emt 0:00:36]} 16. Bb2 {[%emt 0:00:03]} Qf5 {[%emt 0:13:17]} 17. Bxh8 {[%emt 0:00:13]} f6 {[%emt 0:00:19]} 18. Bg7 {[%emt 0:09:06]} Kf7 {[%emt 0:09:17]} 19. Bh6 {[%emt 0:00:09]} g5 {[%emt 0:00:21]} 20. h4 {[%emt 0:07:15]} Qg6 {[%emt 0:05:40]} 21. hxg5 {[%emt 0:00:11]} fxg5 {[%emt 0:02:47]} 22. b5 {[%emt 0:01:16]} Bb7 {[%emt 0:01:41]} 23. Nf3 {[%emt 0:00:42]} Qxh6 {[%emt 0:00:49]} 24. Ne5+ {[%emt 0:00:05]} Kg7 {[%emt 0:04:53]} 25. Qxd7 {[%emt 0:00:21]} Qd6 {[%emt 0:00:15]} 26. Qxb7 {[%emt 0:01:06]} Rb8 {[%emt 0:00:03]} 27. bxc6 {[%emt 0:00:20]} 1-0

[Event "MOKATE POL-chW 2019"]
[Site "Warsaw"]
[Date "2019.05.18"]
[Round "8.5"]
[White "Sliwicka, Alicja"]
[Black "Dwilewicz, Katarzyna"]
[Result "0-1"]
[ECO "B53"]
[WhiteElo "2271"]
[BlackElo "2028"]
[Annotator "NA RC"]
[PlyCount "154"]
[EventDate "2019.05.11"]
[EventType "tourn"]
[EventCountry "POL"]
[SourceTitle "playchess.com"]
[Source "ChessBase"]
[SourceQuality "1"]
[TimeControl "40/5400+30:1800+30"]

1. e4 {[%emt 0:00:00]} c5 {[%emt 0:00:00]} 2. Nf3 {[%emt 0:00:00]} d6 {[%emt 0:00:00]} 3. d4 {[%emt 0:00:00]} cxd4 {[%emt 0:00:00]} 4. Qxd4 {[%emt 0:00:00]} a6 {[%emt 0:02:31]} 5. c4 {[%emt 0:00:05]} Nc6 {[%emt 0:00:35]} 6. Qd2 {[%emt 0:02:59]} Nf6 {[%emt 0:03:08]} 7. Nc3 {[%emt 0:00:13]} g6 {[%emt 0:01:52]} 8. b3 {[%emt 0:01:56]} Bg7 {[%emt 0:00:31]} 9. Bb2 {[%emt 0:01:33]} O-O {[%emt 0:00:19]} 10. Be2 {[%emt 0:03:52]} Qa5 {[%emt 0:08:23]} 11. Nd5 {[%emt 0:17:14] B53: Sicilian: 2...d6: Lines with Qxd4} (11. Rb1 Bg4 12. a3 Rab8 13. b4 Qd8 14. Ng5 h6 15. Nf3 Rc8 16. Rc1 Bxf3 17. gxf3 Nd7 18. Nd5 Bxb2 19. Qxb2 {0-1 (61) Dgebuadze,A (2547)-Lutz,C (2614) Vandoeuvre 2005}) 11... Qxd2+ {[%emt 0:15:29]} 12. Nxd2 {[%emt 0:00:10]} Nxd5 {[%emt 0:00:13]} 13. Bxg7 {[%emt 0:00:17]} Kxg7 {[%emt 0:00:07]} 14. cxd5 {[%emt 0:07:06]} Nd4 {[%emt 0:01:26]} 15. Rc1 {[%emt 0:03:58]} Rd8 $146 {[%emt 0:14:27]} ({Predecessor:} 15... e6 16. dxe6 Bxe6 17. Nf3 Nc6 18. Bd3 Bg4 {½-½ (63) Dzhangirov,D (2287)-Baltag,I (2420) Kiev 2012}) 16. Rc7 {[%emt 0:14:07]} Rd7 {[%emt 0:02:41]} 17. Rc4 {[%emt 0:00:49]} e5 {[%emt 0:01:45]} 18. Nf3 {[%emt 0:03:19]} b5 {[%emt 0:03:01]} 19. Rc3 {[%emt 0:02:55]} b4 {[%emt 0:09:53]} 20. Rc4 {[%emt 0:02:56]} Nxe2 {[%emt 0:00:51]} 21. Kxe2 {[%emt 0:00:05]} a5 {[%emt 0:00:03]} 22. Kd2 {[%emt 0:01:22]} Ba6 {[%emt 0:06:32]} 23. Rc6 {[%emt 0:01:57]} Bb7 {[%emt 0:02:02]} 24. Rc2 {[%emt 0:04:24]} f5 {[%emt 0:01:03]} 25. Ke3 {[%emt 0:02:38]} fxe4 {[%emt 0:04:32]} 26. Kxe4 {[%emt 0:01:06]} Rf8 {[%emt 0:00:40]} 27. Rd1 {[%emt 0:01:15]} h6 {[%emt 0:00:21]} 28. Ng1 {[%emt 0:03:42]} g5 {[%emt 0:03:52]} 29. Ke3 {[%emt 0:02:02]} Kf6 {[%emt 0:00:30]} 30. Ne2 {[%emt 0:00:37]} Ke7 {[%emt 0:00:13]} 31. Ng3 {[%emt 0:02:27]} Kd8 {[%emt 0:01:24]} 32. Ne4 {[%emt 0:01:52]} Rc7 {[%emt 0:00:42]} 33. Rxc7 {[%emt 0:05:45]} Kxc7 {[%emt 0:00:04]} 34. f3 {[%emt 0:01:16]} Kd7 {[%emt 0:00:50]} 35. g4 {[%emt 0:02:24]} Rc8 {[%emt 0:02:24]} 36. Rd2 {[%emt 0:00:04]} Ke7 {[%emt 0:01:51]} 37. Kf2 {[%emt 0:04:47]} Rc1 {[%emt 0:00:58]} 38. Kg2 {[%emt 0:01:26]} Ba6 {[%emt 0:02:57]} 39. Ng3 {[%emt 0:01:29]} Bc8 {[%emt 0:01:10]} 40. Nf1 {[%emt 0:00:00]} Bb7 {[%emt 0:00:00]} 41. Ne3 {[%emt 0:01:47]} Rc5 {[%emt 0:12:40]} 42. Kg3 {[%emt 0:03:49]} Kd7 {[%emt 0:01:29]} 43. h4 {[%emt 0:02:07]} Rc3 {[%emt 0:08:53]} 44. Kf2 {[%emt 0:09:01]} gxh4 {[%emt 0:00:34]} 45. Nc4 {[%emt 0:01:53]} Kc7 {[%emt 0:07:09]} 46. Nxa5 {[%emt 0:01:10]} Kb6 {[%emt 0:00:17]} 47. Nxb7 {[%emt 0:02:38]} Kxb7 {[%emt 0:00:01]} 48. f4 {[%emt 0:02:29]} Rh3 {[%emt 0:02:04]} ({Better is} 48... Kc7 $1 $15 49. Re2 exf4) 49. Rd1 {[%emt 0:01:32]} Rh2+ {[%emt 0:05:24]} 50. Kg1 {[%emt 0:00:27]} (50. Kf3 $11 {keeps the balance.}) 50... Rxa2 {[%emt 0:00:08]} 51. fxe5 {[%emt 0:05:51]} (51. Rf1 $15) 51... dxe5 $19 {[%emt 0:00:02]} 52. d6 {[%emt 0:01:28]} Kc8 {[%emt 0:02:19]} 53. Rd5 {[%emt 0:00:47]} Rb2 {[%emt 0:00:54]} 54. Rxe5 {[%emt 0:00:58]} Rxb3 {[%emt 0:00:11]} 55. Kh2 {[%emt 0:00:46]} Rg3 {[%emt 0:00:53]} 56. Re4 {[%emt 0:00:44]} b3 {[%emt 0:00:14]} 57. Rb4 {[%emt 0:00:40]} Kd7 {[%emt 0:00:58]} 58. Rb6 {[%emt 0:00:18]} Rc3 {[%emt 0:00:57]} 59. Kg2 {[%emt 0:00:33]} Ke6 {[%emt 0:01:09]} 60. Kh2 {[%emt 0:00:40]} Rd3 {[%emt 0:00:25]} 61. Kg2 {[%emt 0:00:28]} Kd7 {[%emt 0:01:41]} 62. Kh2 {[%emt 0:00:05]} Ke6 {[%emt 0:00:02]} 63. Kg2 {[%emt 0:00:03]} Kd5 {[%emt 0:00:55]} 64. d7 {[%emt 0:01:02]} Kc4 {[%emt 0:00:20]} 65. Rc6+ {[%emt 0:02:16]} Kb4 {[%emt 0:00:19]} 66. Rxh6 {[%emt 0:00:44]} Rxd7 {[%emt 0:00:23]} 67. Rb6+ {[%emt 0:01:08]} Kc4 {[%emt 0:01:13]} 68. Kh3 {[%emt 0:00:45]} Rd5 {[%emt 0:00:20]} 69. Kxh4 {[%emt 0:00:42]} Rb5 {[%emt 0:00:19]} 70. Rc6+ {[%emt 0:00:05]} Kd3 {[%emt 0:00:28]} 71. Rc1 {[%emt 0:02:04]} b2 {[%emt 0:00:12]} 72. Rb1 {[%emt 0:00:03]} Kc2 {[%emt 0:00:03]} 73. Rg1 {[%emt 0:01:12]} b1=Q {[%emt 0:00:29]} 74. Rxb1 {[%emt 0:00:03]} Rxb1 {[%emt 0:00:21]} 75. Kg5 {[%emt 0:00:40]} Kd3 {[%emt 0:00:08]} 76. Kf6 {[%emt 0:01:30]} Ke4 {[%emt 0:00:20]} 77. g5 {[%emt 0:00:10]} Rb6+ {[%emt 0:00:07]} 0-1

[Event "MOKATE POL-chW 2019"]
[Site "Warsaw"]
[Date "2019.05.19"]
[Round "9.2"]
[White "Majdan, Joanna"]
[Black "Sliwicka, Alicja"]
[Result "1/2-1/2"]
[ECO "C70"]
[WhiteElo "2371"]
[BlackElo "2271"]
[Annotator "RC"]
[PlyCount "125"]
[EventDate "2019.05.11"]
[EventType "tourn"]
[EventCountry "POL"]
[SourceTitle "playchess.com"]
[Source "ChessBase"]
[SourceQuality "1"]
[TimeControl "40/5400+30:1800+30"]

1. e4 {[%emt 0:00:00]} e5 {[%emt 0:00:00]} 2. Nf3 {[%emt 0:00:00]} Nc6 {[%emt 0:00:00]} 3. Bb5 {[%emt 0:00:00]} a6 {[%emt 0:00:00]} 4. Ba4 {[%emt 0:00:00]} Nge7 {[%emt 0:00:00]} 5. O-O {[%emt 0:00:34]} g6 {[%emt 0:00:00]} 6. c3 {[%emt 0:06:50]} Bg7 {[%emt 0:00:11]} 7. d4 {[%emt 0:00:24]} exd4 {[%emt 0:00:06]} 8. cxd4 {[%emt 0:00:04]} b5 {[%emt 0:00:12]} 9. Bb3 {[%emt 0:01:16]} O-O {[%emt 0:00:20]} 10. Nc3 {[%emt 0:02:08]} d6 {[%emt 0:02:00]} 11. h3 {[%emt 0:01:32]} Na5 {[%emt 0:00:47]} 12. Bc2 {[%emt 0:00:11]} c5 {[%emt 0:02:26]} 13. Re1 {[%emt 0:08:01]} Bb7 {[%emt 0:03:20]} 14. d5 {[%emt 0:06:53]} Nc4 {[%emt 0:03:48]} 15. Bd3 {[%emt 0:08:06]} Nb6 {[%emt 0:07:37]} 16. Rb1 {[%emt 0:04:10]} Qd7 {[%emt 0:06:15]} 17. Bg5 {[%emt 0:04:42]} f6 {[%emt 0:09:57]} 18. Bh4 {[%emt 0:01:52]} b4 {[%emt 0:00:13]} 19. Ne2 {[%emt 0:00:20]} h6 {[%emt 0:17:48]} 20. Bg3 {[%emt 0:06:50]} g5 {[%emt 0:09:33]} 21. h4 {[%emt 0:04:32]} Ng6 {[%emt 0:00:44]} 22. h5 {[%emt 0:00:45]} Ne7 {[%emt 0:03:14]} 23. Nd2 {[%emt 0:08:35]} Rae8 {[%emt 0:04:05]} 24. a3 {[%emt 0:02:20]} a5 {[%emt 0:00:28]} 25. Nc4 {[%emt 0:01:41]} Nxc4 {[%emt 0:01:20]} 26. Bxc4 {[%emt 0:00:01]} f5 {[%emt 0:02:36]} 27. f3 {[%emt 0:01:33]} f4 {[%emt 0:02:28]} 28. Bh2 {[%emt 0:01:47]} Nc8 {[%emt 0:01:25]} 29. axb4 {[%emt 0:02:16]} axb4 {[%emt 0:00:29]} 30. g4 {[%emt 0:01:07]} fxg3 {[%emt 0:01:37]} 31. Nxg3 {[%emt 0:00:04]} Qh3 {[%emt 0:01:20]} 32. Qe2 {[%emt 0:05:16]} Bd4+ {[%emt 0:01:58]} 33. Kh1 {[%emt 0:00:03]} g4 {[%emt 0:05:07]} 34. Rf1 {[%emt 0:03:30]} Nb6 {[%emt 0:03:26]} 35. Bb5 {[%emt 0:03:54]} gxf3 {[%emt 0:01:13]} 36. Rxf3 {[%emt 0:01:18]} Rxf3 {[%emt 0:00:36]} 37. Qxf3 {[%emt 0:00:03]} Rf8 {[%emt 0:00:43]} 38. Qg2 Qxg2+ {[%emt 0:00:12]} 39. Kxg2 {[%emt 0:00:23]} Rf2+ {[%emt 0:01:22]} 40. Kh1 {[%emt 0:00:00]} Rxb2 {[%emt 0:00:00]} 41. Rxb2 {[%emt 0:00:54]} Bxb2 {[%emt 0:08:31]} 42. Nf5 {[%emt 0:00:32]} b3 {[%emt 0:08:09]} 43. Nxd6 {[%emt 0:01:36]} Bd4 {[%emt 0:01:29]} 44. Bd3 {[%emt 0:03:55]} c4 {[%emt 0:02:47]} 45. Nxc4 {[%emt 0:05:43]} Ba6 {[%emt 0:02:42]} 46. Nb2 {[%emt 0:00:56]} Bxd3 {[%emt 0:00:44]} 47. Nxd3 {[%emt 0:00:01]} Na4 {[%emt 0:03:29]} 48. Bg1 {[%emt 0:01:48]} Bxg1 {[%emt 0:03:16]} 49. Kxg1 {[%emt 0:00:02]} b2 {[%emt 0:03:17]} 50. Nxb2 {[%emt 0:00:05]} Nxb2 {[%emt 0:00:02]} 51. Kf2 {[%emt 0:02:10]} Nc4 {[%emt 0:00:43]} 52. Ke2 {[%emt 0:00:13]} Kf7 {[%emt 0:01:15]} 53. Kd3 {[%emt 0:00:03]} Ne5+ {[%emt 0:00:11]} 54. Kd4 {[%emt 0:00:03]} Kf6 {[%emt 0:00:10]} 55. Kc5 {[%emt 0:00:34]} Nf7 {[%emt 0:03:14]} 56. Kd4 {[%emt 0:02:32]} Ne5 {[%emt 0:01:38]} 57. Kc5 {[%emt 0:00:03]} Kg5 {[%emt 0:03:18]} 58. Kd6 {[%emt 0:02:02]} Kf4 {[%emt 0:02:27]} 59. Ke6 {[%emt 0:00:34]} Kxe4 {[%emt 0:00:05]} 60. d6 {[%emt 0:00:15]} Kf4 {[%emt 0:01:39]} 61. d7 {[%emt 0:02:16]} Nxd7 {[%emt 0:00:07]} 62. Kxd7 {[%emt 0:00:03]} Kg5 {[%emt 0:00:06]} 63. Ke6 {[%emt 0:00:02]} 1/2-1/2